bitfinex/quotes_ETHUSD_20220109
["timestamp","ask_amount","ask_price","bid_price","bid_amount"]
[1641723059965,0.00738951,3098.4,3098.3,0.01441142]
[1641723063712,0.00738951,3098.4,3098.3,19.86441142]
[1641723063911,0.00738951,3098.4,3098.3,20.16441142]
[1641723065014,0.00738951,3098.4,3098.3,0.01441142]
[1641723067469,0.00738951,3098.4,3097.9,5.1819]
[1641723067670,0.55305951,3098.4,3097.9,5.1819]
[1641723067870,3.40706729,3098.3,3097.9,5.1819]
[1641723068071,0.54568,3098.2,3097.9,5.1819]
[1641723068276,1.55193266,3098.2,3097.9,5.1819]
[1641723068471,0.00568424,3098.1,3097.9,5.1819]
[1641723068871,0.00511582,3098.0,3097.9,5.1819]
[1641723073131,0.00511582,3098.0,3097.9,5.19629599]
[1641723075665,4.10511582,3098.0,3097.9,0.01439599]
[1641723075869,4.18579582,3098.0,3097.9,0.01439599]
[1641723076065,0.08579582,3098.0,3097.9,0.01439599]
[1641723076964,0.00511582,3098.0,3097.9,0.01439599]
[1641723083476,4.24416807,3098.0,3097.9,0.01439599]
[1641723083775,11.70006807,3098.0,3097.9,0.01439599]
[1641723083978,11.70006807,3098.0,3097.8,1.68132831]
[1641723084174,1.88835,3097.9,3097.8,1.68132831]
[1641723084374,3.16556449,3097.9,3097.8,1.68132831]
[1641723085318,3.46556449,3097.9,3097.8,1.68132831]
[1641723085713,3.16556449,3097.9,3097.8,1.68132831]
[1641723088989,6.5582179,3097.9,3097.8,1.68132831]
[1641723089185,3.16556449,3097.9,3097.8,1.68132831]
[1641723089780,2.16556449,3097.9,3097.8,1.68132831]
[1641723089980,3.16556449,3097.9,3097.8,1.68132831]
[1641723090181,2.35789739,3097.9,3097.8,1.68132831]
[1641723090382,2.27721739,3097.9,3097.8,1.68132831]
[1641723092283,3.08481799,3097.9,3097.8,1.68132831]
[1641723092919,2.27721739,3097.9,3097.8,1.68132831]
[1641723093620,3.08480079,3097.9,3097.8,1.68132831]
[1641723094521,2.27721739,3097.9,3097.8,1.68132831]
[1641723098279,1.32400367,3097.7,3097.3,5.3129]
[1641723098477,4.82993184,3097.6,3097.3,5.3129]
[1641723098678,1.0,3097.5,3097.3,5.3129]
[1641723098879,6.69571,3097.4,3097.3,5.3129]
[1641723099082,7.61670527,3097.4,3097.3,5.3129]
[1641723099878,8.42444527,3097.4,3097.3,5.3129]
[1641723101321,2.27444527,3097.4,3097.3,5.3129]
[1641723101523,2.37048597,3097.4,3097.3,5.3129]
[1641723102125,1.56274597,3097.4,3097.3,5.3129]
[1641723103122,2.37040597,3097.4,3097.3,5.3129]
[1641723103523,38.64369324,3097.4,3097.3,5.3129]
[1641723103724,0.56274597,3097.4,3097.3,5.3129]
[1641723104976,1.37038597,3097.4,3097.3,5.3129]
[1641723105376,6.97038597,3097.4,3097.3,5.3129]
[1641723105976,2.37038597,3097.4,3097.3,5.3129]
[1641723106377,7.07038597,3097.4,3097.3,5.3129]
[1641723107382,2.37038597,3097.4,3097.3,5.3129]
[1641723107580,1.37038597,3097.4,3097.3,5.3129]
[1641723109032,2.37038597,3097.4,3097.3,5.3129]
[1641723109230,12.02151315,3097.4,3097.3,5.3129]
[1641723109431,12.32151315,3097.4,3097.0,1.09352793]
[1641723109633,6.9810594,3097.1,3097.0,1.09352793]
[1641723109831,8.3346694,3097.1,3097.0,1.09352793]
[1641723110035,13.38529325,3097.1,3097.0,1.09352793]
[1641723110239,17.43529325,3097.1,3097.0,1.09352793]
[1641723110435,19.84119325,3097.1,3097.0,1.09352793]
[1641723110632,19.84119325,3097.1,3096.8,0.63462246]
[1641723110835,4.8960407,3096.9,3096.8,0.63462246]
[1641723111034,10.47650639,3096.9,3096.8,0.63462246]
[1641723111235,10.98090638,3096.9,3096.8,0.63462246]
[1641723111481,6.18090638,3096.9,3096.8,0.63462246]
[1641723111869,12.63680638,3096.9,3096.8,0.63462246]
[1641723112070,12.63680638,3096.9,3096.8,2.246e-05]
[1641723112270,12.63680638,3096.9,3096.6,2.4686789]
[1641723112271,13.6460407,3096.7,3096.6,2.4686789]
[1641723112470,13.6460407,3096.7,3096.6,1.48833733]
[1641723112471,7.0976607,3096.7,3096.6,1.48833733]
[1641723112673,11.12717535,3096.7,3096.6,1.49117944]
[1641723112871,18.74523285,3096.7,3096.6,1.49117944]
[1641723113471,19.55331285,3096.7,3096.6,1.49117944]
[1641723113671,16.1237982,3096.7,3096.6,1.49117944]
[1641723114270,15.8237982,3096.7,3096.6,1.49117944]
[1641723115522,16.43566531,3096.7,3096.6,1.49117944]
[1641723115720,16.35494531,3096.7,3096.6,1.49117944]
[1641723115919,16.65494531,3096.7,3096.6,1.49117944]
[1641723117622,0.0960407,3096.5,3095.9,4.10644785]
[1641723117826,7.8250007,3096.4,3095.9,4.10644785]
[1641723118223,8.8250007,3096.4,3095.9,4.10644785]
[1641723120669,8.9538007,3096.4,3095.9,4.10644785]
[1641723120872,9.2522007,3096.4,3095.9,4.10644785]
[1641723121071,8.9522007,3096.4,3095.9,4.10644785]
[1641723121676,8.9514007,3096.4,3095.9,4.10644785]
[1641723121873,9.2522007,3096.4,3096.3,4.5868012]
[1641723122075,9.2514007,3096.4,3096.3,4.5868012]
[1641723122273,9.2522007,3096.4,3096.3,4.5868012]
[1641723122474,9.3313407,3096.4,3096.3,4.5868012]
[1641723122722,8.9498007,3096.4,3096.3,4.5868012]
[1641723123522,8.9490007,3096.4,3096.3,4.5868012]
[1641723123722,8.9490007,3096.4,3095.9,4.10644785]
[1641723123723,0.0960407,3096.2,3095.9,4.10644785]
[1641723123926,0.0960407,3096.2,3095.5,0.01876748]
[1641723123927,0.82323187,3095.7,3095.5,0.01876748]
[1641723124127,11.43216999,3095.6,3095.5,0.01876748]
[1641723124325,7.83806999,3095.6,3095.5,0.01876748]
[1641723124524,7.83806999,3095.6,3095.5,0.02502014]
[1641723124723,8.83806999,3095.6,3095.5,0.02502014]
[1641723124924,10.80067694,3095.6,3095.5,0.02502014]
[1641723125122,10.78776765,3095.6,3095.5,0.02502014]
[1641723125726,10.78776765,3095.6,3095.4,5.62462991]
[1641723125727,6.0460407,3095.5,3095.4,5.62462991]
[1641723126023,8.0169407,3095.5,3095.4,5.62462991]
[1641723126223,8.0169407,3095.5,3095.4,5.57462991]
[1641723127873,11.33529128,3095.5,3095.4,5.57462991]
[1641723128073,11.33529128,3095.5,3095.2,0.007]
[1641723128074,9.3460407,3095.3,3095.2,0.007]
[1641723128280,22.8853207,3095.3,3095.2,0.007]
[1641723128474,24.1853207,3095.3,3095.2,0.007]
[1641723128673,24.1853207,3095.3,3094.9,6.84407975]
[1641723128674,8.8,3095.2,3094.9,6.84407975]
[1641723128874,5.9060407,3095.0,3094.9,6.84407975]
[1641723129075,15.53022129,3095.0,3094.9,6.84407975]
[1641723129274,16.12308782,3095.0,3094.9,6.84407975]
[1641723129491,15.61098129,3095.0,3094.9,6.84407975]
[1641723129674,15.31098129,3095.0,3094.9,6.84407975]
[1641723130074,15.61098129,3095.0,3094.9,6.84407975]
[1641723130823,16.41941129,3095.0,3094.9,6.84407975]
[1641723131221,16.03865129,3095.0,3094.9,6.84407975]
[1641723131820,16.03865129,3095.0,3094.9,0.37647975]
[1641723132021,17.18277398,3095.0,3094.9,0.37647975]
[1641723132223,17.18277398,3095.0,3094.6,2.81537975]
[1641723132422,0.9044807,3094.7,3094.6,2.81537975]
[1641723132622,9.1253807,3094.7,3094.5,9.3587957]
[1641723132827,10.76712199,3094.7,3094.5,8.2128957]
[1641723133223,14.43342915,3094.7,3094.5,8.2128957]
[1641723133426,11.36712199,3094.7,3094.5,8.2128957]
[1641723134071,10.76712199,3094.7,3094.5,8.2128957]
[1641723134273,9.4460407,3094.6,3094.5,8.2128957]
[1641723134471,12.8269407,3094.6,3094.5,1.7443757]
[1641723134775,13.8269407,3094.6,3094.5,1.75005994]
[1641723135772,12.8269407,3094.6,3094.5,1.75005994]
[1641723135979,13.8269407,3094.6,3094.5,1.75005994]
[1641723136774,0.0960407,3094.5,3093.9,0.5]
[1641723136974,8.8254207,3094.5,3093.6,0.08078]
[1641723137475,12.59857937,3094.5,3093.6,0.08078]
[1641723137724,10.165065,3094.5,3093.6,1.40886821]
[1641723138325,10.165065,3094.5,3093.6,1.32808821]
[1641723138927,8.8254207,3094.5,3093.6,1.32808821]
[1641723139128,8.8254207,3094.5,3093.8,0.5]
[1641723139326,8.8254207,3094.5,3093.7,0.08078]
[1641723139327,12.29515672,3094.5,3093.7,0.08078]
[1641723139527,12.59515672,3094.5,3094.4,0.40898216]
[1641723139828,8.8254207,3094.5,3094.4,0.40898216]
[1641723140232,10.24959897,3094.5,3094.4,0.40898216]
[1641723140428,0.0960407,3094.1,3093.7,0.08078]
[1641723140630,6.7147607,3093.8,3093.7,0.08078]
[1641723140832,7.1797607,3093.8,3093.5,3.9872]
[1641723141032,13.6356607,3093.8,3093.5,3.9872]
[1641723141230,13.6356607,3093.8,3093.1,0.011128]
[1641723141231,18.9,3093.7,3093.1,0.011128]
[1641723141493,18.9,3093.7,3093.0,12.62845631]
[1641723141494,1.17313956,3093.2,3093.0,3.69839431]
[1641723141677,0.9038807,3093.2,3093.1,1.17169168]
[1641723141879,7.3697807,3093.2,3093.1,5.42453379]
[1641723142074,7.3697807,3093.2,3093.1,1.17453379]
[1641723142475,7.3697807,3093.2,3093.1,0.00284211]
[1641723142678,8.1785507,3093.2,3093.1,0.00284211]
[1641723142876,7.3697807,3093.2,3093.0,1.75835707]
[1641723143477,0.0952307,3093.1,3093.0,1.75835707]
[1641723143680,6.5611307,3093.1,3093.0,1.75835707]
[1641723143877,4.90822834,3093.1,3093.0,1.75835707]
[1641723144477,1.6174492,3093.4,3093.1,19.85]
[1641723144679,0.61690362,3093.5,3093.1,19.85]
[1641723144884,0.00113684,3093.3,3093.2,18.43081]
[1641723145228,0.00113684,3093.3,3093.2,0.08081]
[1641723145629,0.00113684,3093.3,3093.2,1.25738771]
[1641723145828,0.00113684,3093.3,3093.2,6.35738771]
[1641723146232,0.00113684,3093.3,3093.0,1.28305996]
[1641723146529,0.00113684,3093.3,3093.0,1.22039273]
[1641723146530,1.27364,3093.2,3093.0,1.22039273]
[1641723146729,0.72248662,3092.9,3092.6,2.0201992]
[1641723146929,0.465,3093.2,3092.7,0.08082]
[1641723147129,0.465,3093.2,3092.7,0.0022737]
[1641723147329,1.61771,3092.9,3092.7,0.0022737]
[1641723147531,9.165,3092.8,3092.6,0.9134192]
[1641723147729,6.54712,3092.7,3092.6,0.9134192]
[1641723147930,6.54712,3092.7,3092.5,6.1521]
[1641723147931,5.65,3092.6,3092.5,0.5932392]
[1641723148136,0.80911,3092.5,3092.4,10.29857549]
[1641723148330,0.80911,3092.5,3091.7,22.8694385]
[1641723148331,10.71582714,3092.4,3091.7,22.8694385]
[1641723148632,17.2628599,3091.8,3091.7,1.86627142]
[1641723148835,10.99364466,3091.8,3091.7,1.86627142]
[1641723149072,10.99364466,3091.8,3091.1,3.52845993]
[1641723149073,7.7,3091.6,3091.1,3.52845993]
[1641723149377,25.6723894,3091.2,3091.1,3.47370844]
[1641723149571,25.6723894,3091.2,3089.9,1.0224]
[1641723149572,1.27764561,3090.9,3089.9,1.0224]
[1641723149774,1.27764561,3090.9,3088.7,1.1565]
[1641723149775,5.86e-06,3090.2,3088.7,1.1565]
[1641723149971,0.465,3090.1,3088.3,3.8263]
[1641723150171,23.1226,3090.0,3088.4,6.0234]
[1641723150371,12.715,3089.9,3088.4,6.0234]
[1641723150571,14.015,3089.9,3089.8,10.21042889]
[1641723150771,20.4876,3089.9,3089.8,10.21042889]
[1641723150975,12.55,3089.8,3088.4,6.0234]
[1641723151173,3.0,3089.0,3088.4,6.0234]
[1641723151379,5.80633616,3089.3,3089.0,2.87243233]
[1641723151574,43.10776786,3088.9,3088.7,0.00682109]
[1641723151773,6.9393,3088.8,3088.2,0.01]
[1641723152079,8.55958,3088.8,3088.7,1.22695817]
[1641723152474,6.9393,3088.8,3088.7,1.22695817]
[1641723153726,6.9393,3088.8,3088.7,13.52695817]
[1641723153930,6.4743,3088.8,3088.7,13.52695817]
[1641723154127,0.465,3089.3,3088.8,17.45]
[1641723154525,0.465,3089.3,3088.9,0.00568424]
[1641723154726,0.465,3089.3,3088.8,15.51006432]
[1641723154925,1.83866997,3090.0,3089.7,5.69255704]
[1641723154926,0.08092,3090.0,3089.7,5.69255704]
[1641723155125,1.00413049,3090.3,3089.7,6.43165704]
[1641723155327,6.4725,3090.2,3089.7,6.51254704]
[1641723155725,0.00682108,3090.1,3089.8,1.36892056]
[1641723156124,0.00625266,3090.0,3089.7,3.17057645]
[1641723156326,0.00625266,3090.0,3089.8,0.0809]
[1641723156580,0.465,3090.8,3089.9,18.5]
[1641723156775,0.54589,3091.2,3089.9,18.57118739]
[1641723156976,3.9714,3091.6,3089.9,18.57118739]
[1641723156977,0.00113684,3090.1,3090.0,3.52237754]
[1641723157173,0.00113684,3090.1,3090.0,3.59356493]
[1641723157373,0.00909477,3091.5,3090.0,3.89356493]
[1641723157773,0.00742635,3091.4,3090.1,1.07118739]
[1641723157974,0.00742635,3091.4,3090.2,3.52235754]
[1641723158274,0.00685792,3091.3,3090.2,4.62235754]
[1641723158475,0.00685792,3091.3,3090.3,1.20553265]
[1641723158773,0.08087,3091.9,3090.3,1.20553265]
[1641723158774,0.0062895,3091.2,3090.4,4.79211945]
[1641723158975,0.0062895,3091.2,3090.4,5.46330684]
[1641723159177,0.00572108,3091.1,3090.4,5.46330684]
[1641723159572,0.00515265,3091.0,3090.4,5.46330684]
[1641723159784,0.00515265,3091.0,3090.4,5.41330684]
[1641723160076,0.00458423,3090.9,3090.5,1.53618739]
[1641723160331,0.00458423,3090.9,3090.6,4.88761235]
[1641723160526,0.00401581,3090.8,3090.7,20.85]
[1641723160727,0.00401581,3090.8,3090.7,19.92118739]
[1641723161327,0.00401581,3090.8,3090.7,20.22118739]
[1641723161525,0.00401581,3090.8,3090.7,21.22118739]
[1641723162427,0.08087,3092.3,3090.8,0.5]
[1641723162629,0.11582714,3092.4,3090.9,5.29475471]
[1641723162830,1.9436346,3091.7,3091.1,0.80893]
[1641723163028,1.9436346,3091.7,3091.2,5.82433018]
[1641723163229,0.00454738,3091.6,3091.3,1.0]
[1641723163431,0.00454738,3091.6,3091.4,4.7276781]
[1641723163432,4.738e-05,3091.6,3091.4,4.7276781]
[1641723163632,0.11582714,3092.4,3091.5,25.24742448]
[1641723163832,0.11085,3093.2,3091.7,19.85]
[1641723163833,0.08085,3093.2,3091.7,19.85]
[1641723164079,0.00402635,3092.3,3091.8,4.36540242]
[1641723164284,0.00402635,3092.3,3091.9,1.42130115]
[1641723164481,0.00345792,3092.2,3091.9,1.42130115]
[1641723164780,0.0028895,3092.1,3091.9,1.42130115]
[1641723165181,0.00232108,3092.0,3091.9,1.42130115]
[1641723165586,0.00232108,3092.0,3091.9,22.40748854]
[1641723165782,1.9430681,3092.6,3091.9,23.40748854]
[1641723165988,6.78892446,3093.7,3092.5,0.01247342]
[1641723166184,6.78892446,3093.7,3092.6,0.465]
[1641723166381,6.78892446,3093.7,3092.7,4.57650959]
[1641723166581,6.78892446,3093.7,3092.7,5.11269698]
[1641723166786,6.78892446,3093.7,3092.7,5.41269698]
[1641723167384,6.78892446,3093.7,3092.8,3.81480936]
[1641723167582,6.78892446,3093.7,3092.9,0.08082]
[1641723167821,6.78892446,3093.7,3092.8,0.38081]
[1641723168424,6.78892446,3093.7,3093.3,1.18841819]
[1641723168622,6.78892446,3093.7,3092.8,0.08081]
[1641723168822,6.78892446,3093.7,3092.8,0.03081]
[1641723169023,6.78892446,3093.7,3092.6,0.3]
[1641723169223,6.78892446,3093.7,3092.6,3.69523023]
[1641723169525,6.78892446,3093.7,3092.6,3.99523023]
[1641723169724,6.78892446,3093.7,3093.0,1.10461826]
[1641723170126,3.76946196,3093.6,3092.8,0.08081]
[1641723170329,1.61772,3093.3,3092.2,2.4127]
[1641723170524,1.61772,3093.3,3091.4,0.08190946]
[1641723170525,0.68869525,3092.9,3091.4,0.08190946]
[1641723170725,4.31528196,3093.2,3091.4,0.08190946]
[1641723170726,0.80909,3092.4,3091.4,0.00108946]
[1641723170924,0.80907,3092.2,3091.5,0.00284212]
[1641723171125,0.80907,3092.2,3091.4,0.00341054]
[1641723171326,0.80907,3092.2,3091.9,1.33677129]
[1641723171973,0.80907,3092.2,3091.2,0.08085]
[1641723172176,0.80907,3092.2,3091.1,0.00511581]
[1641723172177,1.27407,3092.2,3091.1,0.00511581]
[1641723172372,0.80918,3091.8,3091.3,0.00397897]
[1641723172574,0.80918,3091.8,3091.1,0.00511581]
[1641723172575,0.80928,3091.6,3091.1,0.00511581]
[1641723172771,0.08086,3091.5,3091.1,0.00511581]
[1641723172972,0.08086,3091.5,3091.2,1.31499894]
[1641723173172,0.08086,3091.5,3091.1,0.00511581]
[1641723173372,0.80928,3091.6,3091.3,0.00397897]
[1641723173675,1.61855,3091.6,3090.7,0.00738951]
[1641723174073,1.61855,3091.6,3090.2,0.01023162]
[1641723174272,1.61855,3091.6,3091.0,1.08199247]
[1641723174273,0.08087,3091.5,3091.0,1.08199247]
[1641723174472,1.61855,3091.6,3091.0,1.08199247]
[1641723174675,1.61855,3091.6,3091.1,0.00511581]
[1641723176029,1.69942,3091.7,3090.1,0.08086]
[1641723176030,13.75,3091.4,3090.1,0.08086]
[1641723176228,0.80946,3090.8,3090.3,0.00454739]
[1641723176425,0.89035,3090.8,3090.3,0.00454739]
[1641723176624,0.89035,3090.8,3090.3,1.22489821]
[1641723177025,0.89035,3090.8,3090.4,0.08486897]
[1641723177026,0.08089,3090.8,3090.4,0.08486897]
[1641723177425,0.08089,3090.8,3090.5,0.00341054]
[1641723177625,0.8093,3091.2,3090.5,0.00341054]
[1641723178025,0.8093,3091.2,3090.4,0.00397897]
[1641723178225,0.8093,3091.2,3090.8,1.27751444]
[1641723178424,0.08086,3091.1,3090.8,1.27751444]
[1641723178625,0.8093,3091.2,3090.9,0.00113685]
[1641723179079,0.8093,3091.2,3090.6,0.00284212]
[1641723179278,0.8093,3091.2,3090.2,0.00511581]
[1641723179479,1.61984684,3091.3,3090.2,0.00511581]
[1641723179480,0.00113684,3091.3,3090.7,0.01280657]
[1641723179884,0.00113684,3091.3,3090.8,0.00170527]
[1641723180678,0.00113684,3091.3,3090.9,1.38290337]
[1641723182079,0.00113684,3091.3,3090.9,1.68290337]
[1641723182383,0.00113684,3091.3,3091.0,3.74962942]
[1641723182578,0.00113684,3091.3,3091.1,0.08086]
[1641723183022,0.00113684,3091.3,3091.0,3.80587377]
[1641723183227,0.00113684,3091.3,3091.0,0.08086]
[1641723183723,0.00113684,3091.3,3091.0,3.83489486]
[1641723184122,0.00113684,3091.3,3091.0,0.08086]
[1641723184523,0.00113684,3091.3,3091.0,3.82298815]
[1641723184926,0.7499249,3091.8,3091.1,19.85]
[1641723185125,0.7499249,3091.8,3091.1,19.85113684]
[1641723185325,0.0022737,3091.7,3091.1,0.00113684]
[1641723185529,0.0022737,3091.7,3091.2,0.08085]
[1641723185727,0.00170527,3091.6,3091.3,1.16528232]
[1641723185925,0.00170527,3091.6,3091.4,4.03033437]
[1641723186124,0.7499249,3091.8,3091.4,4.33033437]
[1641723186125,0.00113685,3091.5,3091.4,4.33033437]
[1641723186326,0.00113685,3091.5,3091.4,24.18033437]
[1641723186574,0.00113685,3091.5,3091.4,21.23085]
[1641723187874,0.00113685,3091.5,3091.3,1.16528232]
[1641723189877,0.00113685,3091.5,3091.1,0.00113684]
[1641723190327,0.00113685,3091.5,3091.0,0.00170527]
[1641723190525,0.00113685,3091.5,3091.1,0.00113684]
[1641723190724,0.00113685,3091.5,3091.0,0.00170527]
[1641723191125,1.36938611,3091.3,3091.0,0.00170527]
[1641723191328,12.2,3091.1,3090.1,1.2322]
[1641723191525,4.43737152,3091.0,3090.1,1.2322]
[1641723191724,4.43737152,3091.0,3090.2,0.00454738]
[1641723191925,0.08089,3091.0,3090.2,0.00454738]
[1641723192127,0.08089,3091.0,3090.5,1.40146285]
[1641723192128,0.80954,3090.6,3090.5,1.40146285]
[1641723192529,0.80954,3090.6,3090.1,1.2322]
[1641723192927,0.80954,3090.6,3090.2,0.00454738]
[1641723193329,2.61903,3090.6,3090.2,0.00454738]
[1641723193528,4.0852579,3090.5,3090.2,0.00454738]
[1641723193729,7.8714034,3090.3,3090.2,0.00454738]
[1641723193981,7.8714034,3090.3,3089.8,0.00682108]
[1641723194175,0.80972,3090.1,3089.8,0.00682108]
[1641723197929,2.75395345,3090.4,3089.8,0.00682108]
[1641723198127,2.75395345,3090.4,3089.8,0.08771108]
[1641723198528,2.75395345,3090.4,3089.9,0.00625265]
[1641723198932,2.75395345,3090.4,3089.8,0.0809]
[1641723199131,0.00227369,3090.3,3089.8,0.0809]
[1641723199528,0.00170527,3090.2,3089.8,0.0809]
[1641723199727,0.81125527,3090.2,3089.8,0.0809]
[1641723199930,0.00113684,3090.1,3089.8,0.0809]
[1641723200129,0.00113684,3090.1,3089.8,0.8902685]
[1641723200330,0.00227369,3090.3,3089.8,0.8902685]
[1641723200534,0.00227369,3090.3,3089.9,0.6]
[1641723200729,0.00170527,3090.2,3090.0,1.41968621]
[1641723201132,1.94394083,3091.2,3090.0,16.06968621]
[1641723201133,0.00113684,3090.1,3090.0,16.06968621]
[1641723201331,0.00113684,3090.1,3090.0,16.87900731]
[1641723201577,0.00682108,3090.1,3090.0,16.06968621]
[1641723201778,0.00682108,3090.1,3090.0,1.41968621]
[1641723202177,0.00682108,3090.1,3090.0,13.66968621]
[1641723202377,0.00682108,3090.1,3090.0,16.42694294]
[1641723202579,0.00682108,3090.1,3090.0,4.17694294]
[1641723202978,0.00682108,3090.1,3090.0,1.41968621]
[1641723203180,0.00682108,3090.1,3090.0,7.61968621]
[1641723203579,0.00682108,3090.1,3089.7,2.2577191]
[1641723203779,0.80962,3089.9,3089.7,2.2577191]
[1641723208430,0.81636108,3090.1,3089.7,3.4218506]
[1641723209088,0.81636108,3090.1,3089.7,2.2577191]
[1641723209688,0.76636108,3090.1,3089.7,2.2577191]
[1641723209988,0.76636108,3090.1,3089.8,0.00738951]
[1641723210589,2.59770153,3090.1,3089.8,0.00738951]
[1641723210794,1.0,3090.0,3089.8,0.00738951]
[1641723210992,11.43089,3089.9,3089.8,0.00738951]
[1641723211194,19.19669,3089.9,3089.8,0.00738951]
[1641723211393,19.66169,3089.9,3089.8,0.00738951]
[1641723212399,8.31169,3089.9,3089.8,0.00738951]
[1641723213625,9.93125,3089.9,3089.8,0.00738951]
[1641723214025,9.46625,3089.9,3089.8,0.00738951]
[1641723216329,9.16625,3089.9,3089.8,0.00738951]
[1641723216780,9.55036,3089.9,3089.8,0.00738951]
[1641723217082,9.55036,3089.9,3089.7,2.2577191]
[1641723217083,12.7,3089.8,3089.7,2.2577191]
[1641723217280,20.1658,3089.8,3089.7,2.2577191]
[1641723217680,22.1106127,3089.8,3089.7,2.2577191]
[1641723217981,0.8098913,3089.6,3089.3,0.465]
[1641723218182,10.95991,3089.4,3089.3,0.465]
[1641723218381,17.50663,3089.4,3089.3,0.465]
[1641723218584,18.50663,3089.4,3089.3,0.0001]
[1641723219481,8.35663,3089.4,3089.3,0.0001]
[1641723219681,8.27571,3089.4,3089.3,0.0001]
[1641723219881,7.27571,3089.4,3089.3,0.0001]
[1641723220082,6.4658,3089.4,3089.3,0.0001]
[1641723223334,6.4658,3089.4,3089.2,1.00062133]
[1641723223533,5.4987,3089.4,3089.2,1.00062133]
[1641723223734,1.9449577,3089.6,3089.4,0.06883784]
[1641723223983,0.0298123,3090.0,3089.5,19.8]
[1641723224181,1.94426442,3090.7,3089.9,0.0129103]
[1641723224386,0.80922,3091.4,3090.4,0.8092679]
[1641723224580,0.00397897,3090.5,3090.4,0.8092679]
[1641723224978,0.81840478,3091.4,3090.4,0.8092679]
[1641723225181,0.02981225,3091.1,3090.4,0.8092679]
[1641723225381,0.80932,3091.0,3090.5,1.1077592]
[1641723225681,0.02981225,3091.1,3090.5,1.1077592]
[1641723225682,0.00625266,3090.9,3090.5,1.1077592]
[1641723225882,0.81567266,3090.9,3090.2,1.1366]
[1641723226080,0.81567266,3090.9,3089.4,3.17393931]
[1641723226081,0.00568424,3090.8,3089.7,4.13563731]
[1641723226485,0.3,3090.9,3089.7,4.13563731]
[1641723226486,0.00511581,3090.7,3089.7,4.13563731]
[1641723226781,0.00454739,3090.6,3089.7,4.13563731]
[1641723226981,0.00454739,3090.6,3089.7,3.92631303]
[1641723227181,2.18629809,3090.8,3089.7,2.75754048]
[1641723227382,0.80962,3090.4,3089.7,2.75754048]
[1641723227583,0.08600581,3090.7,3089.7,2.75754048]
[1641723227835,0.08600581,3090.7,3089.8,2.75741019]
[1641723227836,1.61925,3090.1,3089.8,2.75741019]
[1641723228235,0.00113685,3090.0,3089.5,1.16210527]
[1641723228432,0.0809,3089.9,3089.5,1.16210527]
[1641723229032,0.80972,3089.7,3089.5,0.00170527]
[1641723230134,1.80972,3089.7,3089.5,0.00170527]
[1641723230334,0.80972,3089.7,3089.5,0.00170527]
[1641723230533,1.80972,3089.7,3089.5,0.00170527]
[1641723231134,0.80972,3089.7,3089.5,0.00170527]
[1641723231336,1.80972,3089.7,3089.5,0.00170527]
[1641723231783,1.80972,3089.7,3089.4,0.02054311]
[1641723231985,2.61945,3089.7,3089.4,0.02054311]
[1641723232185,2.61945,3089.7,3089.5,2.75792251]
[1641723233788,4.2,3089.5,3089.4,0.02054311]
[1641723233990,16.30922709,3089.5,3089.4,0.02054311]
[1641723234186,6.39088,3089.5,3089.4,0.02054311]
[1641723234387,6.39088,3089.5,3088.5,2.46715645]
[1641723234388,15.5,3089.4,3088.5,1.23452745]
[1641723234589,0.80997,3089.1,3088.5,1.23452745]
[1641723234890,1.24174264,3088.9,3088.7,0.00454739]
[1641723235340,0.08092,3089.0,3088.7,0.00454739]
[1641723235636,2.429964,3089.1,3088.7,0.00454739]
[1641723235835,0.81002,3088.9,3088.7,0.00454739]
[1641723237239,8.60429663,3088.8,3088.7,0.00454739]
[1641723237439,5.14593,3088.8,3088.7,0.00454739]
[1641723237637,1.54593,3088.8,3088.7,0.00454739]
[1641723237838,8.01953,3088.8,3088.7,0.00454739]
[1641723238438,8.31953,3088.8,3088.7,0.00454739]
[1641723238639,3.2,3088.6,3088.2,0.01]
[1641723238839,2.430582,3088.4,3088.2,0.01]
[1641723239101,10.15454,3088.3,3088.2,0.01]
[1641723239305,6.55454,3088.3,3088.2,0.01]
[1641723239504,7.85454,3088.3,3088.2,0.01284211]
[1641723239713,7.85454,3088.3,3088.1,1.1975313]
[1641723239714,9.21378012,3088.3,3088.1,1.1975313]
[1641723239903,2.62051,3088.2,3087.9,1.23469869]
[1641723240105,6.55454,3088.1,3087.9,1.23469869]
[1641723240307,7.36478,3088.1,3088.0,0.00113685]
[1641723240508,7.28384,3088.1,3088.0,0.00113685]
[1641723240904,6.95917472,3088.1,3088.0,0.00113685]
[1641723241105,6.14893472,3088.1,3088.0,0.00113685]
[1641723241510,6.13793472,3088.1,3088.0,12.90746263]
[1641723241706,6.13793472,3088.1,3088.0,12.35632578]
[1641723242508,6.13793472,3088.1,3088.0,2.53958565]
[1641723242737,6.13793472,3088.1,3088.0,1.23325987]
[1641723243732,6.13793472,3088.1,3088.0,12.55635898]
[1641723243933,6.13793472,3088.1,3087.9,5.3727528]
[1641723244335,6.13793472,3088.1,3088.0,5.83242604]
[1641723245135,6.13793472,3088.1,3088.0,5.99555303]
[1641723245735,6.13793472,3088.1,3088.0,11.99555303]
[1641723245944,6.13793472,3088.1,3088.0,1.39555303]
[1641723246237,6.13793472,3088.1,3087.9,4.13996199]
[1641723247097,6.13793472,3088.1,3088.0,21.03216641]
[1641723247293,6.13793472,3088.1,3088.0,21.11311641]
[1641723247494,6.13793472,3088.1,3088.0,25.2513219]
[1641723247694,6.13793472,3088.1,3088.0,26.42591151]
[1641723247894,6.13793472,3088.1,3088.0,25.1937451]
[1641723248997,1.94543067,3088.8,3088.1,19.8]
[1641723249197,4.87383,3089.1,3088.2,19.8]
[1641723249198,0.89078,3089.1,3088.2,19.8]
[1641723249398,0.00284211,3088.7,3088.3,5.17890151]
[1641723249602,0.00454738,3089.0,3088.3,5.17890151]
[1641723249797,0.00227369,3088.6,3088.4,0.465]
[1641723249997,7.896e-05,3088.9,3088.5,24.63335307]
[1641723250255,1.94482019,3089.8,3089.1,1.6189]
[1641723250434,3.621,3090.6,3089.6,1.25971423]
[1641723250632,3.621,3090.6,3089.2,25.40726403]
[1641723250633,3.621,3090.6,3089.7,4.21838969]
[1641723250833,0.00526847,3090.2,3089.4,4.0529358]
[1641723251232,0.00470004,3090.1,3089.3,5.34945046]
[1641723251633,0.00413162,3090.0,3089.5,1.6188452]
[1641723252033,0.0035632,3089.9,3089.5,1.6188452]
[1641723252434,0.00299477,3089.8,3089.5,1.6188452]
[1641723252835,0.00242635,3089.7,3089.5,2.4282952]
[1641723253034,0.00242635,3089.7,3089.5,0.48286453]
[1641723253234,0.00185792,3089.6,3089.5,0.48286453]
[1641723253834,0.00185792,3089.6,3089.5,2.91112873]